bitfinex-derivatives/quotes_ETHF0:USTF0_20250224
["timestamp","ask_amount","ask_price","bid_price","bid_amount"]
[1740388962649,1.1558,2698.5,2698.3,3.954397]
[1740388962950,1.89678,2698.5,2698.3,3.954397]
[1740388963144,1.1558,2698.5,2698.3,3.213367]
[1740388963850,0.74101,2698.4,2698.3,3.213367]
[1740388964244,1.1558,2698.5,2698.3,3.213367]
[1740388965547,3.2078,2699.5,2698.3,3.213367]
[1740388965749,3.092,2699.4,2698.9,3.2078]
[1740388966048,3.092,2699.4,2699.0,42.5232]
[1740388966244,3.092,2699.4,2699.0,44.37526]
[1740388966449,3.83274,2699.4,2699.2,0.74077]
[1740388967351,3.83274,2699.4,2699.2,0.74078]
[1740388967548,3.092,2699.4,2699.0,1.7232]
[1740388968149,3.83275,2699.4,2699.2,0.74078]
[1740388968348,0.71772652,2699.7,2699.0,3.5753]
[1740388968546,3.092,2699.6,2699.5,0.74071]
[1740388968945,0.71772652,2699.7,2699.2,5.05978]
[1740388969453,3.092,2699.7,2699.2,3.2078]
[1740388969650,0.7407,2699.6,2699.4,0.74073]
[1740388969847,0.74072,2699.5,2699.3,0.74074]
[1740388970152,0.74072,2699.5,2699.3,0.74075]
[1740388970153,0.74073,2699.5,2699.3,0.74075]
[1740388970453,3.092,2699.7,2699.3,0.74075]
[1740388970642,3.80945382,2699.7,2699.2,3.2078]
[1740388970852,5.66115382,2699.7,2699.2,3.2078]
[1740388971246,0.74072,2699.5,2699.3,0.74074]
[1740388971542,0.71745382,2699.6,2699.5,0.74071]
[1740388971756,1.45814382,2699.6,2699.4,0.74072]
[1740388971950,1.45812382,2699.7,2699.5,0.7407]
[1740388972254,3.80945382,2699.7,2699.6,0.74068]
[1740388972455,3.80945382,2699.7,2699.3,0.74075]
[1740388972655,3.80945382,2699.7,2699.2,3.2078]
[1740388972857,0.74075,2699.4,2699.2,3.2078]
[1740388973052,0.74075,2699.4,2699.2,3.94858]
[1740388973459,0.71745382,2699.6,2699.2,3.2078]
[1740388973850,0.74072,2699.5,2699.3,0.74076]
[1740388974047,0.74071,2699.6,2699.2,3.2078]
[1740388974358,3.80945382,2699.7,2699.2,3.2078]
[1740388974560,3.80945382,2699.7,2699.1,3.2078]
[1740388974849,3.80945382,2699.7,2697.2,0.3712]
[1740388974850,3.2078,2699.5,2698.6,3.2078]
[1740388975054,3.2078,2699.2,2698.5,0.5764]
[1740388975252,4.1988,2699.1,2698.6,3.2078]
[1740388975458,0.71745382,2699.0,2698.6,3.2078]
[1740388975659,0.71745382,2699.0,2698.5,0.5764]
[1740388976760,0.27726098,2698.9,2698.5,0.5764]
[1740388977454,0.27726098,2698.9,2698.6,3.2078]
[1740388977660,0.71745382,2699.0,2698.6,3.2078]
[1740388979457,4.1988,2699.1,2698.6,3.2078]
[1740388980761,1.1078,2699.1,2698.6,3.2078]
[1740388980967,3.2078,2699.8,2698.9,3.2078]
[1740388981160,3.70887517,2699.7,2699.0,1.1343]
[1740388981361,4.2087,2699.7,2699.0,1.6741]
[1740388981563,4.92608571,2699.7,2699.0,1.6741]
[1740388981859,0.71738571,2699.6,2699.0,1.6741]
[1740388982063,0.71738571,2699.6,2699.2,3.2078]
[1740388982457,0.71738571,2699.6,2699.5,3.2078]
[1740388982858,6.2988,2700.1,2699.5,3.2078]
[1740388983067,6.2988,2700.1,2699.6,0.5437]
[1740388983365,6.2988,2700.1,2699.8,0.74063]
[1740388983366,0.7406,2699.9,2699.8,0.74063]
[1740388984162,0.7406,2699.9,2699.6,1.10725638]
[1740388984163,0.71738571,2700.0,2699.6,1.10725638]
[1740388984359,0.74059,2700.0,2699.8,0.74061]
[1740388984567,0.7406,2700.0,2699.8,0.74061]
[1740388984792,1.45798571,2700.0,2699.8,0.74061]
[1740388984955,1.45797571,2700.0,2699.6,1.10725638]
[1740388985161,1.45797571,2700.0,2699.8,0.74062]
[1740388986065,0.71738571,2700.0,2699.9,0.7406]
[1740388986259,3.2078,2701.3,2699.8,3.09]
[1740388986462,0.5775,2700.8,2700.2,5.05908]
[1740388986659,0.5775,2700.8,2699.9,3.2078]
[1740388986859,0.5775,2700.8,2700.1,3.2078]
[1740388987160,0.5775,2700.8,2700.7,0.74038]
[1740388987463,0.5775,2700.8,2700.2,0.582]
[1740388987767,0.5775,2700.8,2700.2,2.43327]
[1740388987964,1.31788,2700.8,2700.5,0.74042]
[1740388988268,0.5775,2700.8,2700.6,0.7404]
[1740388988468,0.5775,2700.8,2700.2,2.43327]
[1740388988668,1.31786,2700.8,2700.6,0.74041]
[1740388988869,0.5775,2700.8,2700.2,2.43327]
[1740388989062,1.31787,2700.8,2700.5,0.74042]
[1740388989257,0.5775,2700.8,2700.7,0.74038]
[1740388989670,3.2078,2701.1,2700.4,3.2078]
[1740388989962,3.2078,2701.1,2700.5,1.8511]
[1740388990175,3.94808,2701.1,2700.9,0.74031]
[1740388990358,3.2078,2701.1,2700.4,3.2078]
[1740388990557,0.74036,2700.8,2700.6,0.7404]
[1740388990967,0.74039,2700.7,2700.4,3.2078]
[1740388991162,0.74039,2700.7,2700.5,0.74044]
[1740388991369,3.2078,2701.1,2700.4,3.2078]
[1740388991567,0.74037,2700.8,2700.6,0.7404]
[1740388991763,5.05852,2701.1,2700.4,3.2078]
[1740388991969,1.85085,2700.9,2700.4,3.2078]
[1740388992164,3.089,2700.8,2700.4,3.94824]
[1740388992472,1.85096,2700.7,2700.2,0.582]
[1740388992673,0.74048,2700.4,2700.2,1.32251]
[1740388992966,0.74049,2700.4,2700.2,0.582]
[1740388993269,0.5471,2700.6,2700.2,1.32252]
[1740388993462,0.74047,2700.4,2700.2,0.582]
[1740388993667,0.74047,2700.4,2700.2,1.32252]
[1740388995467,0.5471,2700.6,2700.2,0.582]
[1740388995670,0.74049,2700.4,2700.2,0.582]
[1740388995971,0.74049,2700.4,2700.2,1.3225]
[1740388996272,0.5471,2700.6,2700.2,0.582]
[1740388996866,3.2078,2700.8,2700.2,0.582]
[1740388997872,0.5623,2700.7,2700.2,0.582]
[1740388998168,0.5641,2700.6,2700.1,3.2078]
[1740388998470,6.2968,2700.5,2699.7,1.0874]
[1740388999377,0.05985543,2700.4,2699.7,1.0874]
[1740388999566,0.05985543,2700.4,2699.7,0.5442]
[1740388999768,3.26765543,2700.4,2699.7,0.5442]
[1740389000066,0.05985543,2700.3,2699.7,0.5442]
[1740389000475,0.5622,2700.2,2699.7,0.5442]
[1740389000674,3.089,2700.1,2699.7,0.5442]
[1740389000877,0.5532,2700.0,2699.7,0.5442]
[1740389001075,0.5622,2700.2,2699.7,0.5442]
[1740389001267,3.088,2700.1,2699.7,0.5442]
[1740389004267,3.2078,2700.4,2699.7,3.4982]
[1740389004469,20.54,2701.2,2699.9,3.2078]
[1740389004470,6.2958,2700.8,2699.9,3.2078]
[1740389004670,0.05984685,2700.7,2700.0,0.5693]
[1740389005069,0.5906,2700.6,2700.0,0.5693]
[1740389005278,0.05984685,2700.5,2700.0,0.5693]
[1740389005474,3.088,2700.4,2700.0,0.5693]
[1740389005970,3.088,2700.4,2699.9,6.1618]
[1740389008168,3.088,2700.4,2699.9,3.2078]
[1740389009470,0.5775,2700.3,2699.9,3.2078]
[1740389012376,3.2078,2700.5,2699.9,3.2078]
[1740389012572,586.885,2718.9,2699.8,0.5631]
[1740389012573,1.1758,2701.0,2700.2,3.2078]
[1740389012880,4.2638,2701.0,2700.5,3.2078]
[1740389013081,4.2638,2701.0,2700.6,0.5576]
[1740389013969,1.1758,2701.0,2700.6,0.5576]
[1740389016084,0.05983752,2700.9,2700.6,0.5576]
[1740389016373,1.1758,2701.0,2700.6,0.5576]
[1740389016579,0.0598376,2700.9,2700.6,0.5576]
[1740389016878,1.1758,2701.0,2700.6,0.5576]
[1740389017082,0.05983768,2700.9,2700.6,0.5576]
[1740389017275,1.1758,2701.0,2700.6,0.5576]
[1740389028585,1.1758,2701.0,2700.8,0.12275094]
[1740389029689,1.1758,2701.0,2700.9,0.12275094]
[1740389029888,1.23563851,2701.0,2700.9,0.12275094]
[1740389030083,1.23563851,2701.0,2700.9,0.03985164]
[1740389032494,0.5881,2701.0,2700.9,0.03985164]
[1740389032791,0.5881,2701.0,2700.9,0.59085164]
[1740389033386,3.6557,2701.3,2700.9,1.16985164]
[1740389033592,0.5847,2701.3,2701.1,3.2078]
[1740389033995,0.5847,2701.3,2701.2,0.5843]
[1740389034199,0.5697,2701.7,2701.2,0.62415164]
[1740389034488,0.63812286,2701.6,2701.2,0.62415164]
[1740389034690,0.5783,2701.6,2701.4,3.2078]
[1740389034989,3.2078,2701.9,2701.4,3.2078]
[1740389035191,4.99602644,2701.8,2701.6,0.03985164]
[1740389035387,0.74011,2701.7,2701.6,0.03985164]
[1740389035994,0.79992995,2701.7,2701.6,0.03985164]
[1740389038192,0.79993338,2701.7,2701.6,0.03985164]
[1740389040505,0.79993338,2701.7,2701.6,0.0130127]
[1740389041205,0.05982338,2701.7,2701.6,0.0130127]
[1740389046305,3.14382338,2701.7,2701.6,0.0130127]
[1740389046508,3.14382338,2701.7,2701.0,0.54745638]
[1740389046706,3.26762338,2701.6,2701.0,0.54745638]
[1740389046907,0.64502338,2701.5,2701.0,0.54745638]
[1740389047106,0.05982338,2701.4,2701.0,0.54745638]
[1740389047313,3.084,2701.3,2701.0,0.54745638]
[1740389048414,3.084,2701.3,2700.9,2.28847375]
[1740389049014,0.05983107,2701.2,2700.5,6.1618]
[1740389049314,0.60733107,2701.2,2700.5,6.1618]
[1740389049617,0.06535205,2701.1,2700.6,0.00555638]
[1740389049815,0.05983107,2701.0,2700.6,0.00555638]
[1740389050114,1.1185,2701.0,2700.6,0.00555638]
[1740389051604,1.1185,2701.0,2700.6,1.13135638]
[1740389053514,3.084,2700.9,2700.6,1.13135638]
[1740389054215,3.084,2700.9,2700.7,0.53702531]
[1740389054416,3.084,2700.9,2700.8,0.53702531]
[1740389055316,0.00552098,2701.1,2700.8,0.53696645]
[1740389055517,3.084,2701.0,2700.9,0.53695072]
[1740389055718,3.084,2701.0,2700.9,0.53696855]
[1740389059015,3.14383524,2701.0,2700.6,1.13135638]
[1740389059217,3.084,2701.0,2700.7,0.53707264]
[1740389059420,3.084,2701.0,2700.8,0.53707264]
[1740389059617,3.084,2701.0,2700.6,1.13135638]
[1740389059818,3.084,2701.0,2700.7,0.53700662]
[1740389060020,3.084,2701.0,2700.8,0.53700662]
[1740389060225,3.084,2701.0,2700.6,1.13135638]
[1740389060521,3.084,2701.0,2700.7,0.53699392]
[1740389060822,3.084,2701.0,2700.8,0.53699392]
[1740389061025,3.084,2701.0,2700.6,1.13135638]
[1740389061322,3.084,2701.0,2700.7,0.53676763]
[1740389061518,0.00552098,2701.1,2700.8,3.2078]
[1740389061717,0.00552098,2701.1,2700.6,1.13135638]
[1740389061915,0.00552098,2701.1,2700.9,3.2078]
[1740389062121,9.8e-07,2701.1,2701.0,1.62503584]
[1740389062619,9.8e-07,2701.1,2701.0,7.62503584]
[1740389063516,9.8e-07,2701.1,2701.0,8.54710412]
[1740389064120,9.8e-07,2701.1,2701.0,11.50090867]
[1740389064322,3.083,2702.8,2701.0,11.49978896]
[1740389064529,0.546,2702.5,2701.7,3.2078]
[1740389064729,0.05980329,2702.4,2701.9,3.2078]
[1740389065040,3.083,2702.9,2702.2,3.2078]
[1740389065228,0.73989,2702.6,2702.5,0.73987]
[1740389065419,0.7399,2702.5,2702.4,0.7399]
[1740389065727,3.2078,2702.7,2702.3,0.59305638]
[1740389066025,0.73992,2702.5,2702.4,0.7399]
[1740389066218,1.85177,2702.6,2702.5,0.73989]
[1740389066821,1.1119,2702.6,2702.3,0.59305638]
[1740389067126,1.1119,2702.6,2702.5,0.73989]
[1740389069227,3.2078,2703.0,2702.4,1.8498]
[1740389069525,3.2078,2703.0,2702.7,0.73982]
[1740389069734,3.94757,2703.0,2702.8,0.7398]
[1740389069924,0.73978,2702.9,2702.7,0.73982]
[1740389070126,0.73978,2702.9,2702.4,2.4209]
[1740389070127,3.2078,2703.0,2702.4,0.5711]
[1740389070334,3.2078,2703.0,2702.9,0.73978]
[1740389070733,3.2078,2703.0,2702.6,1.84964]
[1740389070734,3.2078,2703.0,2702.5,2.38233]
[1740389071035,3.2078,2703.0,2702.9,0.73978]
[1740389071233,3.2078,2703.0,2702.5,0.5326]
[1740389071433,4.48916,2703.0,2702.8,0.7398]
[1740389071633,0.73978,2702.9,2702.7,0.73981]
[1740389071935,3.7494,2703.0,2702.5,2.38231]
[1740389072130,4.48916,2703.0,2702.5,2.38231]
[1740389072331,3.2078,2702.7,2702.3,0.59305638]
[1740389072631,0.7399,2702.5,2702.3,0.59305638]
[1740389072826,0.7399,2702.5,2702.3,1.33299638]
[1740389073028,0.73992,2702.4,2702.3,0.00555638]
[1740389073232,3.2078,2702.4,2702.3,0.00555638]
[1740389073622,0.5416,2702.5,2702.3,0.00555638]
[1740389073825,3.2078,2702.4,2702.3,0.00555638]
[1740389074833,3.26760315,2702.4,2702.3,0.00555638]
[1740389076424,6.34860315,2702.4,2701.5,2.954]
[1740389076632,0.05980315,2702.3,2701.4,3.2078]
[1740389076836,0.05980315,2702.3,2701.4,3.7718]
[1740389077434,0.05980315,2702.3,2701.8,0.74007]
[1740389077737,0.74004,2702.0,2701.8,0.74007]
[1740389077933,0.5706,2701.9,2701.8,0.74007]
[1740389078235,0.74004,2702.0,2701.6,0.00555638]
[1740389078236,3.2078,2702.0,2701.6,0.00555638]
[1740389078434,6.38e-06,2702.1,2701.9,3.2078]
[1740389078634,6.38e-06,2702.1,2702.0,1.14744403]
[1740389078834,3.2078,2703.1,2702.0,55.94977288]
[1740389079136,0.79954587,2703.0,2702.2,5.0577]
[1740389079337,1.31036,2703.0,2702.8,0.7398]
[1740389079735,0.5706,2703.0,2702.5,0.5883]
[1740389079936,1.31036,2703.0,2702.8,0.7398]
[1740389080235,0.5706,2703.0,2702.5,0.5883]
[1740389080432,1.31036,2703.0,2702.8,0.73979]
[1740389080631,1.31036,2703.0,2702.5,0.5883]
[1740389080939,0.79957888,2702.9,2702.7,0.73982]
[1740389081138,0.73979,2702.9,2702.7,0.73982]
[1740389081333,0.5706,2703.0,2702.6,0.73985]
[1740389081535,0.79958005,2702.9,2702.5,0.5883]
[1740389081842,0.5706,2703.0,2702.6,0.73985]
[1740389082142,2.42002,2703.0,2702.5,0.5883]
[1740389082338,0.73985,2702.7,2702.5,0.5883]
[1740389082634,3.2078,2702.8,2702.2,3.2078]
[1740389082837,3.2078,2702.8,2702.4,0.7399]
[1740389083037,0.73985,2702.7,2702.4,0.7399]
[1740389083233,0.5606,2702.6,2702.4,0.7399]
[1740389083442,0.5606,2702.6,2702.2,3.7624]
[1740389083635,1.30047,2702.6,2702.4,0.73991]
[1740389083835,3.2078,2703.1,2702.9,0.73976]
[1740389084037,3.2078,2703.1,2702.9,0.73977]
[1740389084242,3.94753,2703.1,2702.9,0.73977]
[1740389084443,3.2078,2703.1,2703.0,0.73975]
[1740389084743,3.2078,2703.1,2702.6,1.84963]
[1740389085039,3.2078,2703.1,2703.0,0.73975]
[1740389085835,1.1174,2703.2,2703.1,0.73972]
[1740389086544,1.1174,2703.2,2703.1,0.73632429]
[1740389086845,1.8571,2703.2,2703.0,0.73973]
[1740389087043,1.1174,2703.2,2702.9,0.73975]
[1740389087344,1.8571,2703.2,2703.0,0.73973]
[1740389087546,1.1174,2703.2,2702.7,1.169]
[1740389087747,1.8571,2703.2,2703.0,0.73974]
[1740389088045,1.1174,2703.2,2702.7,1.169]
[1740389088342,1.8571,2703.2,2703.0,0.73974]
[1740389088546,0.73975,2703.1,2702.8,0.73978]
[1740389088840,0.73975,2703.1,2702.9,1.29963855]
[1740389089033,1.85711,2703.2,2703.0,0.73975]
[1740389089239,1.1174,2703.2,2702.7,1.169]
[1740389089547,1.1174,2703.2,2702.8,0.56001127]
[1740389089741,1.1174,2703.2,2702.9,0.56001127]
[1740389089946,1.1174,2703.2,2703.0,0.56001127]
[1740389090140,1.1174,2703.2,2702.7,1.169]
[1740389090341,1.1174,2703.2,2702.8,1.45701709]
[1740389090548,1.1174,2703.2,2702.9,0.56081885]
[1740389090848,1.1174,2703.2,2703.0,0.56081885]
[1740389091148,3.2078,2703.4,2703.1,0.56081885]
[1740389091338,3.2078,2703.4,2703.2,0.56131842]
[1740389091539,3.2078,2703.4,2703.0,0.00555638]
[1740389091740,0.05977663,2703.3,2703.1,1.45915528]
[1740389091936,0.5316,2703.6,2703.2,0.56121538]
[1740389092146,0.05977442,2703.5,2703.3,1.45891487]
[1740389092447,0.5316,2703.6,2703.4,0.56114618]
[1740389092746,0.5316,2703.6,2703.5,0.56114618]
[1740389092947,0.591373,2703.6,2703.5,0.56114618]
[1740389093249,0.591373,2703.6,2703.0,3.21335638]
[1740389093444,0.5316,2703.6,2703.1,1.45907351]
[1740389093646,0.05977483,2703.5,2703.2,1.45907351]
[1740389093849,0.05977483,2703.5,2703.3,1.45907351]
[1740389094149,0.5316,2703.6,2703.4,0.56118212]
[1740389094350,0.5316,2703.6,2703.5,0.56119734]
[1740389094652,0.59137252,2703.6,2703.5,0.56113976]
[1740389094846,0.59137252,2703.6,2703.0,3.21335638]
[1740389095042,0.05977252,2703.5,2703.1,1.45888458]
[1740389095251,0.05977252,2703.5,2703.2,1.45888458]
[1740389095551,0.05977252,2703.5,2703.3,0.56110945]
[1740389095847,0.05977252,2703.5,2703.4,0.56110945]
[1740389096248,0.5316,2703.6,2703.4,0.56110945]
[1740389096443,0.5316,2703.6,2703.5,0.56110945]
[1740389096645,0.59137227,2703.6,2703.5,0.56077778]
[1740389096845,0.59137227,2703.6,2703.5,0.56072537]
[1740389097052,0.59137227,2703.6,2703.5,0.56064797]
[1740389097257,0.5913721,2703.6,2703.5,0.56064797]
[1740389098755,0.5316,2703.6,2703.5,0.56067296]
[1740389098952,0.59137344,2703.6,2703.5,0.56067296]
[1740389099151,0.59137344,2703.6,2703.2,1.115]
[1740389099455,0.05977447,2703.5,2703.2,1.115]
[1740389100453,3.7394,2703.6,2703.2,1.115]
[1740389100649,0.05977663,2703.5,2703.2,1.115]
[1740389101049,0.05977663,2703.5,2703.1,2.954]
[1740389101554,3.2078,2703.3,2703.1,2.954]
[1740389101755,0.5801,2703.2,2703.1,2.954]
[1740389103070,0.5801,2703.2,2703.0,0.00555638]
[1740389103269,0.5519,2703.1,2703.0,0.00555638]
[1740389103965,0.5519,2703.1,2703.0,0.56637886]
[1740389104162,3.2078,2704.1,2703.0,0.56637886]
[1740389104366,1.21387128,2704.0,2703.2,3.2078]
[1740389104568,0.574,2704.0,2703.5,3.2078]
[1740389104767,0.574,2704.0,2703.6,42.4855]
[1740389104969,0.574,2704.0,2703.7,0.56050085]
[1740389105267,0.27393331,2704.2,2704.1,0.73945]
[1740389105573,0.73945,2704.1,2703.9,0.73948]
[1740389105866,0.73947,2704.1,2703.9,0.73948]
[1740389106073,0.73952,2703.9,2703.6,1.84938]
[1740389106274,3.2078,2704.1,2703.7,1.45691955]
[1740389106473,0.27393331,2704.2,2703.8,2.19631087]
[1740389106671,0.05976136,2704.1,2703.9,1.45679087]
[1740389106868,3.26756136,2704.1,2704.0,1.45662223]
[1740389107071,3.2078,2704.1,2704.0,0.56030418]
[1740389107270,3.94725,2704.1,2704.0,1.45697254]
[1740389107470,3.2078,2704.1,2704.0,1.45697254]
[1740389107671,3.94725,2704.1,2704.0,1.45697254]
[1740389108172,3.94725,2704.1,2704.0,0.56030418]
[1740389108370,3.94725,2704.1,2704.0,1.4575234]
[1740389108570,4.00701,2704.1,2704.0,0.56076589]
[1740389109373,3.26756,2704.1,2704.0,0.56076589]
[1740389109571,4.00701,2704.1,2704.0,0.56076589]
[1740389109773,3.26756,2704.1,2704.0,0.56076589]
[1740389110172,3.94725,2704.1,2704.0,0.56076589]
[1740389110377,3.94725,2704.1,2704.0,0.56111889]
[1740389110676,3.94725,2704.1,2704.0,0.56108676]
[1740389111378,4.00701105,2704.1,2704.0,0.56108676]
[1740389112372,3.94725,2704.1,2704.0,0.56108676]
[1740389112570,4.00701163,2704.1,2704.0,0.56108676]
[1740389113071,3.26756163,2704.1,2704.0,0.56098094]
[1740389113576,3.2078,2704.1,2704.0,1.4585458]
[1740389113775,3.2078,2704.1,2704.0,0.56098094]
[1740389113776,3.26755951,2704.1,2704.0,0.56098094]
[1740389114283,3.26755951,2704.1,2703.7,0.5407]
[1740389114578,3.2078,2704.1,2703.7,0.5407]
[1740389115072,3.2078,2704.1,2703.6,0.5589]
[1740389115275,3.1367624,2704.0,2703.2,0.5407]
[1740389115478,0.0597624,2703.9,2703.3,1.45908258]
[1740389115679,0.5978624,2703.9,2703.4,0.56118561]
[1740389115977,0.5381,2703.9,2703.5,0.56118561]
[1740389116173,0.5381,2703.9,2703.2,1.72]
[1740389116481,0.59896849,2703.8,2703.3,0.56127418]
[1740389116674,0.5392,2703.8,2703.4,0.56132485]
[1740389116871,0.5392,2703.8,2703.2,1.72]
[1740389117071,0.5392,2703.8,2703.3,0.56133719]
[1740389117276,0.5392,2703.8,2703.4,0.56133719]
[1740389117474,0.5392,2703.8,2703.2,1.1793]
[1740389117475,3.2078,2703.6,2703.2,1.1793]
[1740389117680,3.077,2703.5,2703.2,1.1793]
[1740389117873,0.534,2703.4,2703.2,1.1793]
[1740389121283,0.534,2703.4,2703.3,1.46130296]
[1740389122480,6.2838,2703.6,2703.3,1.46130296]
[1740389122678,0.5629,2703.5,2703.4,1.46130296]
[1740389122876,0.5629,2703.5,2703.4,42.26106143]
[1740389123080,0.62267405,2703.5,2703.4,42.26106143]
[1740389123482,0.62267405,2703.5,2703.4,1.46106143]
[1740389124790,0.62267405,2703.5,2703.4,1.46121737]
[1740389125784,0.5629,2703.5,2703.4,1.46121737]
[1740389126784,0.5629,2703.5,2703.2,1.1793]
[1740389127083,0.5629,2703.5,2703.3,1.46134604]
[1740389127282,0.5629,2703.5,2703.4,1.46134604]
[1740389128389,0.62267331,2703.5,2703.4,1.46134604]
[1740389128585,0.5629,2703.5,2703.4,1.46134604]
[1740389128981,0.5629,2703.5,2703.4,1.46142787]
[1740389129384,0.62267518,2703.5,2703.4,1.46147783]
[1740389129990,0.62267502,2703.5,2703.4,1.46147783]
[1740389130490,0.5629,2703.5,2703.4,1.46147783]
[1740389131083,0.5629,2703.5,2703.4,1.46143593]
[1740389131689,0.5392,2703.8,2703.4,1.46143593]
[1740389131889,0.5392,2703.8,2703.5,1.46143593]
[1740389132089,3.2078,2704.5,2703.6,4.53743593]
[1740389132286,3.2078,2704.5,2704.4,0.73937]
[1740389132484,5.03647992,2704.8,2704.4,1.45984863]
[1740389132691,0.05974483,2704.7,2704.6,0.73931]
[1740389132986,0.05974483,2704.7,2704.2,5.05631]
[1740389133187,3.2078,2705.2,2705.1,0.73918]
[1740389133391,0.5712,2705.4,2705.1,0.56141076]
[1740389133595,1.3103,2705.4,2705.2,1.30055076]
[1740389133789,0.05973125,2705.3,2705.2,0.73914]
[1740389133986,0.05973125,2705.5,2705.2,1.45793166]
[1740389134294,3.779,2705.7,2705.3,1.45793166]
[1740389134494,0.73909,2705.5,2705.4,1.48533079]
[1740389134792,0.79881309,2705.5,2705.4,1.48533079]
[1740389134989,3.779,2705.7,2705.4,0.92455366]
[1740389135188,0.79876463,2705.6,2705.5,0.57784603]
[1740389135384,0.79876491,2705.6,2705.5,0.57784603]
[1740389135987,0.05972491,2705.6,2705.5,0.57784603]
[1740389136496,0.05972491,2705.6,2705.1,0.73916]
[1740389136803,0.05972491,2705.6,2705.2,0.73913]
[1740389136987,0.05972491,2705.6,2704.9,3.7696]
[1740389137190,3.779,2705.7,2704.9,3.7696]
[1740389137388,0.73911,2705.4,2704.9,3.7696]
[1740389137695,1.84768,2705.5,2704.9,0.5618]
[1740389137892,0.73918,2705.1,2704.9,0.5618]
[1740389138390,0.7392,2705.0,2704.7,2.954]
[1740389138593,6.8641,2705.3,2704.7,2.954]
[1740389138891,0.7392,2705.0,2704.7,2.954]
[1740389139091,0.7392,2705.0,2704.7,3.69328]
[1740389139691,0.7392,2705.1,2704.7,3.69327]
[1740389139890,6.8641,2705.3,2704.8,0.73926]
[1740389140091,0.73918,2705.1,2704.7,3.69327]
[1740389140491,0.7392,2705.0,2704.7,3.69327]
[1740389141289,6.8641,2705.3,2704.7,2.954]
[1740389141490,0.73923,2704.9,2704.7,2.954]
[1740389141697,0.73923,2704.9,2704.6,1.27189]
[1740389142195,0.73924,2704.9,2704.6,1.2719]
[1740389142393,3.2078,2705.0,2704.4,0.0055459]
[1740389142593,3.2078,2704.7,2704.4,0.0055459]
[1740389142897,3.94711,2704.7,2704.4,0.7449059]
[1740389143092,0.73932,2704.6,2704.4,0.7449059]
[1740389143290,3.2078,2704.7,2704.4,0.7449059]
[1740389143291,3.2078,2704.7,2704.4,0.7448959]
[1740389143495,0.73934,2704.5,2704.4,0.0055459]
[1740389143695,3.2078,2704.7,2704.4,0.58354487]
[1740389143898,0.73933,2704.6,2704.5,0.57799897]
[1740389144993,0.73931,2704.6,2704.4,0.0055459]
[1740389145198,3.2078,2704.7,2704.4,0.0055459]
[1740389145892,0.73931,2704.6,2704.5,0.57800239]
[1740389146087,3.2078,2704.7,2704.6,0.73931]
[1740389146499,3.94709,2704.7,2704.6,0.73931]
[1740389146993,0.5796,2704.9,2704.5,1.84836]
[1740389147195,3.2078,2705.0,2704.6,0.57795372]
[1740389147496,3.2078,2705.0,2704.7,0.57794645]
[1740389147796,3.2078,2705.0,2704.6,2.954]
[1740389148097,3.2078,2705.0,2704.7,0.57794206]
[1740389148292,3.2078,2705.0,2704.6,2.954]
[1740389148499,3.2078,2705.0,2704.7,0.57793922]
[1740389148699,3.2078,2705.0,2704.6,2.954]
[1740389148893,3.2078,2705.0,2704.7,0.57794135]
[1740389149192,0.5635,2705.4,2704.9,3.2078]
[1740389149394,0.5635,2705.4,2705.0,1.11600871]
[1740389149600,0.5635,2705.4,2705.1,0.57786219]
[1740389149790,3.772,2705.7,2705.2,0.57783102]
[1740389149996,3.772,2705.7,2705.3,0.57778831]
[1740389150193,3.94683,2705.7,2705.6,0.73904]
[1740389150502,8.12896,2706.3,2705.6,0.57775788]
[1740389150799,0.73897,2705.9,2705.8,0.73897]
[1740389151290,0.73896,2706.0,2705.8,0.73897]
[1740389151496,0.73896,2705.9,2705.8,0.73897]
[1740389151696,0.73896,2706.0,2705.8,0.73897]
[1740389151891,0.28253205,2706.1,2705.7,0.0055459]
[1740389152101,0.73894,2706.0,2705.8,0.73898]
[1740389152298,0.28253205,2706.1,2705.7,0.7445459]
[1740389152596,1.28604,2706.0,2705.7,0.7445359]
[1740389152903,3.7549,2706.0,2705.7,0.0055459]
[1740389153708,3.7549,2706.0,2705.9,0.73896]
[1740389153902,3.7549,2706.0,2705.8,0.73897]
[1740389154102,3.7549,2706.0,2705.9,0.73896]
[1740389154806,3.7549,2706.0,2705.8,0.73897]
[1740389155307,3.7549,2706.0,2705.7,0.0055459]
[1740389155604,3.7549,2706.0,2705.8,0.73899]
[1740389155808,4.49385,2706.0,2705.7,0.0055459]
[1740389156006,3.7549,2706.0,2705.7,0.0055459]
[1740389158716,3.7549,2706.0,2705.8,1.50215697]
[1740389158918,3.7549,2706.0,2705.9,0.57775268]
[1740389159415,3.7549,2706.0,2705.9,1.50215458]
[1740389159812,3.7549,2706.0,2705.9,1.50215148]
[1740389161319,3.7549,2706.0,2705.9,1.50212141]
[1740389161721,3.2078,2706.3,2705.9,1.50212141]
[1740389161918,3.2078,2706.7,2706.0,8.81072773]
[1740389162223,3.2078,2706.7,2706.3,0.57038528]
[1740389162424,3.2078,2706.7,2706.4,1.50201925]
[1740389162617,1.0799,2706.6,2706.5,1.50201925]
[1740389162818,3.2078,2707.0,2706.5,1.50201925]
[1740389163019,3.2078,2707.0,2706.6,1.50201925]
[1740389163218,1.0799,2706.9,2706.7,1.50201925]
[1740389163423,3.2078,2706.8,2706.4,2.954]
[1740389163619,3.784,2706.8,2706.5,0.57764055]
[1740389163918,3.784,2706.8,2706.6,1.50186544]
[1740389164121,4.52271,2706.8,2706.7,0.57764055]
[1740389164323,3.84370129,2706.8,2706.4,2.954]
[1740389164527,3.84370129,2706.8,2705.9,0.57038528]
[1740389164528,3.2078,2706.5,2706.0,0.73892]
[1740389164721,3.2078,2706.5,2706.4,0.73882]
[1740389165029,3.2078,2706.8,2706.7,0.73874]